[Event "Titled Tuesday Blitz March 21 Late 2023"]
[White "Fernandez, Maria Florencia"]
[Black "lisjakzlatko1"]
[WhiteFideId "116459"]
[WhiteElo "2155"]
[BlackElo "2190"]
[Result "1-0"]
[Round "02"]
[TimeControl "180+2"]
[Date "2023.03.21"]
[WhiteClock "0:00:02"]
[BlackClock "0:00:03"]

1. d4 {[%clk 0:02:52]}  d6 {[%clk 0:02:59]} 2. c4 {[%clk 0:02:48]}  e5 {[%clk 0:02:59]} 3. Nc3 {[%clk 0:02:34]}  exd4 {[%clk 0:02:45]} 4. Qxd4 {[%clk 0:02:27]}  Nc6 {[%clk 0:02:45]} 5. Qd1 {[%clk 0:02:25]}  g6 {[%clk 0:02:40]} 6. Nf3 {[%clk 0:02:22]}  Bg7 {[%clk 0:02:40]} 7. g3 {[%clk 0:02:19]}  Nge7 {[%clk 0:02:39]} 8. Bg2 {[%clk 0:02:14]}  O-O {[%clk 0:02:39]} 9. O-O {[%clk 0:02:11]}  Be6 {[%clk 0:02:38]} 10. Nd5 {[%clk 0:02:07]}  h6 {[%clk 0:02:38]} 11. Rb1 {[%clk 0:01:58]}  a5 {[%clk 0:02:36]} 12. b3 {[%clk 0:01:57]}  Qd7 {[%clk 0:02:36]} 13. Bb2 {[%clk 0:01:52]}  Ne5 {[%clk 0:02:28]} 14. Nxe5 {[%clk 0:01:24]}  dxe5 {[%clk 0:02:26]} 15. Nxe7+ {[%clk 0:01:18]}  Qxe7 {[%clk 0:02:26]} 16. Bxb7 {[%clk 0:01:18]}  Ra7 {[%clk 0:02:17]} 17. Bg2 {[%clk 0:01:17]}  a4 {[%clk 0:02:18]} 18. Qc2 {[%clk 0:01:11]}  a3 {[%clk 0:02:14]} 19. Bc3 {[%clk 0:01:10]}  Qc5 {[%clk 0:02:10]} 20. Rbd1 {[%clk 0:01:05]}  c6 {[%clk 0:01:56]} 21. Rd2 {[%clk 0:00:57]}  h5 {[%clk 0:01:56]} 22. Rfd1 {[%clk 0:00:54]}  h4 {[%clk 0:01:56]} 23. Rd6 {[%clk 0:00:49]}  Rc7 {[%clk 0:01:54]} 24. Qc1 {[%clk 0:00:32]}  hxg3 {[%clk 0:01:47]} 25. hxg3 {[%clk 0:00:31]}  Bg4 {[%clk 0:01:44]} 26. Qd2 {[%clk 0:00:28]}  Re8 {[%clk 0:01:18]} 27. Bb4 {[%clk 0:00:27]}  Qa7 {[%clk 0:01:17]} 28. Rxc6 {[%clk 0:00:22]}  Rd7 {[%clk 0:01:12]} 29. Rd6 {[%clk 0:00:21]}  Red8 {[%clk 0:01:08]} 30. Bf3 {[%clk 0:00:16]}  Bxf3 {[%clk 0:01:00]} 31. exf3 {[%clk 0:00:17]}  Rxd6 {[%clk 0:00:47]} 32. Bxd6 {[%clk 0:00:18]}  Qb7 {[%clk 0:00:43]} 33. Qd5 {[%clk 0:00:15]}  Qc8 {[%clk 0:00:40]} 34. c5 {[%clk 0:00:14]}  Qh3 {[%clk 0:00:33]} 35. Qe4 {[%clk 0:00:12]}  Qe6 {[%clk 0:00:26]} 36. Qd5 {[%clk 0:00:07]}  Qf5 {[%clk 0:00:24]} 37. b4 {[%clk 0:00:05]}  Bf8 {[%clk 0:00:24]} 38. b5 {[%clk 0:00:05]}  Qh3 {[%clk 0:00:20]} 39. b6 {[%clk 0:00:05]}  e4 {[%clk 0:00:20]} 40. Qxe4 {[%clk 0:00:04]}  Qc8 {[%clk 0:00:16]} 41. b7 {[%clk 0:00:04]}  Qd7 {[%clk 0:00:14]} 42. c6 {[%clk 0:00:02]}  Qh3 {[%clk 0:00:06]} 43. c7 {[%clk 0:00:02]}  Bxd6 {[%clk 0:00:03]} 44. cxd8=Q+ {[%clk 0:00:01]}  Kh7 {[%clk 0:00:03]} 45. Qxd6 {[%clk 0:00:02]} 1-0


[Site "https://www.chess.com"]

[Event "Titled Tuesday Blitz March 21 Late 2023"]
[White "salgadoLO"]
[Black "Tworuszka, Michal"]
[BlackFideId "1117858"]
[WhiteElo "2186"]
[BlackElo "2447"]
[Result "0-1"]
[Round "02"]
[TimeControl "180+2"]
[Date "2023.03.21"]
[WhiteClock "0:00:01"]
[BlackClock "0:00:19"]

1. d4 {[%clk 0:03:00]}  Nf6 {[%clk 0:02:57]} 2. Bg5 {[%clk 0:02:59]}  Ne4 {[%clk 0:02:57]} 3. Bh4 {[%clk 0:02:59]}  c5 {[%clk 0:02:54]} 4. f3 {[%clk 0:02:59]}  Qa5+ {[%clk 0:02:53]} 5. c3 {[%clk 0:02:59]}  g5 {[%clk 0:02:53]} 6. fxe4 {[%clk 0:02:55]}  gxh4 {[%clk 0:02:53]} 7. d5 {[%clk 0:02:50]}  d6 {[%clk 0:02:36]} 8. Nd2 {[%clk 0:02:47]}  b5 {[%clk 0:02:33]} 9. Ngf3 {[%clk 0:02:42]}  h3 {[%clk 0:02:32]} 10. g3 {[%clk 0:02:33]}  Bh6 {[%clk 0:02:31]} 11. a4 {[%clk 0:02:29]}  b4 {[%clk 0:02:04]} 12. Nc4 {[%clk 0:02:29]}  Qc7 {[%clk 0:02:04]} 13. e5 {[%clk 0:02:19]}  O-O {[%clk 0:01:59]} 14. Qd3 {[%clk 0:02:02]}  Ba6 {[%clk 0:01:51]} 15. Qe4 {[%clk 0:02:01]}  Bxc4 {[%clk 0:01:43]} 16. Qxc4 {[%clk 0:02:00]}  dxe5 {[%clk 0:01:41]} 17. Bxh3 {[%clk 0:01:57]}  Nd7 {[%clk 0:01:32]} 18. Qg4+ {[%clk 0:01:56]}  Kh8 {[%clk 0:01:30]} 19. Qxd7 {[%clk 0:01:55]}  Qb6 {[%clk 0:01:23]} 20. Qf5 {[%clk 0:01:47]}  bxc3 {[%clk 0:01:20]} 21. bxc3 {[%clk 0:01:45]}  c4 {[%clk 0:01:18]} 22. Kf1 {[%clk 0:01:20]}  f6 {[%clk 0:01:14]} 23. Kg2 {[%clk 0:01:16]}  Qe3 {[%clk 0:01:11]} 24. Rae1 {[%clk 0:01:05]}  Rab8 {[%clk 0:01:11]} 25. Qc2 {[%clk 0:00:54]}  Rb3 {[%clk 0:01:08]} 26. Bf5 {[%clk 0:00:29]}  Rfb8 {[%clk 0:01:07]} 27. Bxh7 {[%clk 0:00:25]}  Rb2 {[%clk 0:01:06]} 28. Qe4 {[%clk 0:00:21]}  R8b3 {[%clk 0:00:44]} 29. Qxe3 {[%clk 0:00:17]}  Bxe3 {[%clk 0:00:44]} 30. Be4 {[%clk 0:00:13]}  Rxc3 {[%clk 0:00:43]} 31. Nh4 {[%clk 0:00:11]}  Ra3 {[%clk 0:00:30]} 32. Nf5 {[%clk 0:00:11]}  Bd2 {[%clk 0:00:30]} 33. Rb1 {[%clk 0:00:09]}  c3 {[%clk 0:00:26]} 34. Rxb2 {[%clk 0:00:07]}  cxb2 {[%clk 0:00:26]} 35. Nxe7 {[%clk 0:00:06]}  Bc1 {[%clk 0:00:24]} 36. d6 {[%clk 0:00:05]}  Re3 {[%clk 0:00:23]} 37. d7 {[%clk 0:00:05]}  Rxe2+ {[%clk 0:00:20]} 38. Kh3 {[%clk 0:00:05]}  Rd2 {[%clk 0:00:20]} 39. Nd5 {[%clk 0:00:05]}  Rxd5 {[%clk 0:00:18]} 40. Bxd5 {[%clk 0:00:04]}  b1=Q {[%clk 0:00:18]} 41. d8=Q+ {[%clk 0:00:04]}  Kg7 {[%clk 0:00:19]} 42. Qg8+ {[%clk 0:00:01]}  Kh6 {[%clk 0:00:19]} 0-1


[Site "https://www.chess.com"]

[Event "Titled Tuesday Blitz March 21 Late 2023"]
[White "Torres Dominguez, David"]
[Black "Przybylski, Wojciech"]
[WhiteFideId "2220857"]
[BlackFideId "1117599"]
[WhiteElo "1999"]
[BlackElo "2222"]
[Result "1-0"]
[Round "02"]
[TimeControl "180+2"]
[Date "2023.03.21"]
[WhiteClock "0:00:10"]
[BlackClock "0:00:03"]

1. e4 {[%clk 0:03:00]}  c5 {[%clk 0:02:56]} 2. Nc3 {[%clk 0:02:58]}  e6 {[%clk 0:02:56]} 3. f4 {[%clk 0:02:57]}  f5 {[%clk 0:02:47]} 4. exf5 {[%clk 0:02:52]}  exf5 {[%clk 0:02:47]} 5. Bc4 {[%clk 0:02:50]}  Nf6 {[%clk 0:02:46]} 6. Qe2+ {[%clk 0:02:46]}  Be7 {[%clk 0:02:42]} 7. Nd5 {[%clk 0:02:40]}  Nxd5 {[%clk 0:02:31]} 8. Bxd5 {[%clk 0:02:40]}  Nc6 {[%clk 0:02:25]} 9. c3 {[%clk 0:02:33]}  Qc7 {[%clk 0:02:22]} 10. d3 {[%clk 0:02:28]}  d6 {[%clk 0:02:19]} 11. Nf3 {[%clk 0:02:28]}  Bd7 {[%clk 0:02:18]} 12. O-O {[%clk 0:01:55]}  O-O-O {[%clk 0:02:15]} 13. a3 {[%clk 0:01:48]}  Bf6 {[%clk 0:02:13]} 14. Bd2 {[%clk 0:01:40]}  Rde8 {[%clk 0:02:12]} 15. Qf2 {[%clk 0:01:39]}  Ne7 {[%clk 0:01:50]} 16. Bf7 {[%clk 0:01:38]}  Ref8 {[%clk 0:01:45]} 17. Ba2 {[%clk 0:01:38]}  Bb5 {[%clk 0:01:40]} 18. c4 {[%clk 0:01:34]}  Bd7 {[%clk 0:01:35]} 19. Bc3 {[%clk 0:01:32]}  Nc6 {[%clk 0:01:31]} 20. Bxf6 {[%clk 0:01:30]}  gxf6 {[%clk 0:01:29]} 21. b4 {[%clk 0:01:30]}  cxb4 {[%clk 0:01:11]} 22. d4 {[%clk 0:01:28]}  b3 {[%clk 0:01:07]} 23. Bxb3 {[%clk 0:01:27]}  Re8 {[%clk 0:01:04]} 24. d5 {[%clk 0:01:24]}  Na5 {[%clk 0:01:03]} 25. Qb2 {[%clk 0:01:18]}  Re3 {[%clk 0:00:59]} 26. Qxf6 {[%clk 0:01:08]}  Rg8 {[%clk 0:00:52]} 27. Bc2 {[%clk 0:01:08]}  Re2 {[%clk 0:00:45]} 28. Rf2 {[%clk 0:00:45]}  Rxf2 {[%clk 0:00:38]} 29. Kxf2 {[%clk 0:00:43]}  Qc5+ {[%clk 0:00:34]} 30. Qd4 {[%clk 0:00:43]}  Nxc4 {[%clk 0:00:34]} 31. Qxc5+ {[%clk 0:00:42]}  dxc5 {[%clk 0:00:33]} 32. Rc1 {[%clk 0:00:34]}  Nd6 {[%clk 0:00:33]} 33. Ne5 {[%clk 0:00:32]}  b6 {[%clk 0:00:33]} 34. Bd3 {[%clk 0:00:27]}  Kd8 {[%clk 0:00:30]} 35. g3 {[%clk 0:00:28]}  h6 {[%clk 0:00:25]} 36. a4 {[%clk 0:00:27]}  Kc7 {[%clk 0:00:24]} 37. a5 {[%clk 0:00:27]}  Rb8 {[%clk 0:00:23]} 38. Ng6 {[%clk 0:00:19]}  Be8 {[%clk 0:00:21]} 39. Ne7 {[%clk 0:00:17]}  Kd8 {[%clk 0:00:19]} 40. Nxf5 {[%clk 0:00:17]}  Bg6 {[%clk 0:00:14]} 41. Nxd6 {[%clk 0:00:15]}  Bxd3 {[%clk 0:00:14]} 42. axb6 {[%clk 0:00:13]}  axb6 {[%clk 0:00:11]} 43. Nf7+ {[%clk 0:00:13]}  Ke7 {[%clk 0:00:11]} 44. Ne5 {[%clk 0:00:14]}  Be4 {[%clk 0:00:10]} 45. Nc6+ {[%clk 0:00:13]}  Kd6 {[%clk 0:00:10]} 46. Nxb8 {[%clk 0:00:14]}  Bxd5 {[%clk 0:00:10]} 47. Rd1 {[%clk 0:00:13]}  b5 {[%clk 0:00:10]} 48. f5 {[%clk 0:00:12]}  b4 {[%clk 0:00:08]} 49. f6 {[%clk 0:00:12]}  c4 {[%clk 0:00:08]} 50. Rxd5+ {[%clk 0:00:12]}  Ke6 {[%clk 0:00:05]} 51. Rf5 {[%clk 0:00:11]}  Kf7 {[%clk 0:00:02]} 52. Nd7 {[%clk 0:00:10]}  b3 {[%clk 0:00:02]} 53. Ne5+ {[%clk 0:00:10]}  Ke6 {[%clk 0:00:02]} 54. Nxc4 {[%clk 0:00:11]}  b2 {[%clk 0:00:01]} 55. Nxb2 {[%clk 0:00:11]}  Kxf5 {[%clk 0:00:02]} 56. f7 {[%clk 0:00:11]}  Kg4 {[%clk 0:00:03]} 57. f8=Q {[%clk 0:00:10]}  h5 {[%clk 0:00:04]} 58. Qf4+ {[%clk 0:00:09]}  Kh3 {[%clk 0:00:03]} 59. Qh4# {[%clk 0:00:10]} 1-0


[Site "https://www.chess.com"]

[Event "Titled Tuesday Blitz March 21 Late 2023"]
[White "Hartikainen, Jarmo"]
[Black "Grot, Blazej"]
[WhiteFideId "503134"]
[BlackFideId "21835845"]
[WhiteElo "2176"]
[BlackElo "1823"]
[Result "0-1"]
[Round "02"]
[TimeControl "180+2"]
[Date "2023.03.21"]
[WhiteClock "0:00:05"]
[BlackClock "0:00:46"]

1. e4 {[%clk 0:03:00]}  d6 {[%clk 0:02:57]} 2. d4 {[%clk 0:03:00]}  Nf6 {[%clk 0:02:57]} 3. Nc3 {[%clk 0:03:00]}  c6 {[%clk 0:02:57]} 4. Be2 {[%clk 0:02:58]}  e5 {[%clk 0:02:55]} 5. Be3 {[%clk 0:02:55]}  Qa5 {[%clk 0:02:51]} 6. f3 {[%clk 0:02:52]}  Be7 {[%clk 0:02:48]} 7. g4 {[%clk 0:02:49]}  b5 {[%clk 0:02:45]} 8. a3 {[%clk 0:02:48]}  Qb6 {[%clk 0:02:41]} 9. h4 {[%clk 0:02:44]}  a5 {[%clk 0:02:40]} 10. h5 {[%clk 0:02:41]}  Bb7 {[%clk 0:02:34]} 11. Qd2 {[%clk 0:02:39]}  Qc7 {[%clk 0:02:32]} 12. g5 {[%clk 0:02:26]}  Nfd7 {[%clk 0:02:32]} 13. Nh3 {[%clk 0:02:16]}  O-O {[%clk 0:02:20]} 14. g6 {[%clk 0:02:04]}  b4 {[%clk 0:02:19]} 15. gxh7+ {[%clk 0:01:26]}  Kxh7 {[%clk 0:02:13]} 16. Nd1 {[%clk 0:01:13]}  bxa3 {[%clk 0:02:10]} 17. bxa3 {[%clk 0:01:11]}  Bh4+ {[%clk 0:02:04]} 18. Ndf2 {[%clk 0:01:08]}  exd4 {[%clk 0:01:48]} 19. Bxd4 {[%clk 0:00:57]}  c5 {[%clk 0:01:47]} 20. Be3 {[%clk 0:00:53]}  Ba6 {[%clk 0:01:47]} 21. Ng5+ {[%clk 0:00:50]}  Bxg5 {[%clk 0:01:47]} 22. Bxg5 {[%clk 0:00:50]}  Bxe2 {[%clk 0:01:47]} 23. Kxe2 {[%clk 0:00:48]}  Ne5 {[%clk 0:01:44]} 24. h6 {[%clk 0:00:44]}  g6 {[%clk 0:01:43]} 25. Qf4 {[%clk 0:00:41]}  f5 {[%clk 0:01:40]} 26. Qh4 {[%clk 0:00:30]}  Nbc6 {[%clk 0:01:38]} 27. c3 {[%clk 0:00:26]}  Rab8 {[%clk 0:01:25]} 28. Rab1 {[%clk 0:00:23]}  fxe4 {[%clk 0:01:17]} 29. Nxe4 {[%clk 0:00:22]}  Nxf3 {[%clk 0:01:17]} 30. Qg4 {[%clk 0:00:15]}  Rbe8 {[%clk 0:01:10]} 31. Bd8 {[%clk 0:00:13]}  Nxd8 {[%clk 0:00:58]} 32. Kd1 {[%clk 0:00:11]}  Qe7 {[%clk 0:00:48]} 33. Rb7 {[%clk 0:00:05]}  Nxb7 {[%clk 0:00:46]} 0-1


[Site "https://www.chess.com"]

[Event "Titled Tuesday Blitz March 21 Late 2023"]
[White "lluiss"]
[Black "Baches Garcia, Guillermo"]
[BlackFideId "2209764"]
[WhiteElo "2169"]
[BlackElo "2433"]
[Result "1/2-1/2"]
[Round "02"]
[TimeControl "180+2"]
[Date "2023.03.21"]
[WhiteClock "0:01:03"]
[BlackClock "0:01:25"]

1. Nf3 {[%clk 0:03:00]}  d5 {[%clk 0:02:59]} 2. d4 {[%clk 0:03:00]}  Nf6 {[%clk 0:02:59]} 3. c4 {[%clk 0:03:00]}  e6 {[%clk 0:02:59]} 4. cxd5 {[%clk 0:03:00]}  Nxd5 {[%clk 0:02:58]} 5. e4 {[%clk 0:02:58]}  Bb4+ {[%clk 0:02:57]} 6. Bd2 {[%clk 0:02:56]}  Bxd2+ {[%clk 0:02:57]} 7. Qxd2 {[%clk 0:02:55]}  Nb6 {[%clk 0:02:55]} 8. Nc3 {[%clk 0:02:55]}  O-O {[%clk 0:02:55]} 9. Bd3 {[%clk 0:02:46]}  Qe7 {[%clk 0:02:54]} 10. O-O {[%clk 0:02:44]}  Rd8 {[%clk 0:02:54]} 11. Qe3 {[%clk 0:02:44]}  Bd7 {[%clk 0:02:48]} 12. Rfe1 {[%clk 0:02:42]}  Nc6 {[%clk 0:02:45]} 13. e5 {[%clk 0:02:37]}  Be8 {[%clk 0:02:37]} 14. Ne4 {[%clk 0:02:36]}  h6 {[%clk 0:02:31]} 15. Rac1 {[%clk 0:02:28]}  Nb4 {[%clk 0:02:28]} 16. Bb1 {[%clk 0:02:19]}  N4d5 {[%clk 0:02:27]} 17. Qd2 {[%clk 0:02:17]}  Rac8 {[%clk 0:02:20]} 18. Nc5 {[%clk 0:02:16]}  c6 {[%clk 0:02:12]} 19. Qd3 {[%clk 0:02:13]}  g6 {[%clk 0:02:12]} 20. Qd2 {[%clk 0:02:12]}  Kg7 {[%clk 0:02:11]} 21. Ne4 {[%clk 0:02:10]}  Rc7 {[%clk 0:02:03]} 22. Red1 {[%clk 0:02:01]}  Nc8 {[%clk 0:02:00]} 23. a3 {[%clk 0:01:54]}  b6 {[%clk 0:01:57]} 24. Qe2 {[%clk 0:01:47]}  Qd7 {[%clk 0:01:48]} 25. Ba2 {[%clk 0:01:47]}  Qe7 {[%clk 0:01:45]} 26. Rc2 {[%clk 0:01:44]}  a5 {[%clk 0:01:43]} 27. Rdc1 {[%clk 0:01:44]}  Qd7 {[%clk 0:01:39]} 28. h4 {[%clk 0:01:38]}  Qe7 {[%clk 0:01:38]} 29. Bb3 {[%clk 0:01:22]}  Ra7 {[%clk 0:01:35]} 30. Ba4 {[%clk 0:01:20]}  b5 {[%clk 0:01:35]} 31. Bb3 {[%clk 0:01:20]}  a4 {[%clk 0:01:35]} 32. Bxd5 {[%clk 0:01:20]}  Rxd5 {[%clk 0:01:33]} 33. Nf6 {[%clk 0:01:19]}  Nb6 {[%clk 0:01:30]} 34. Nxd5 {[%clk 0:01:13]}  Nxd5 {[%clk 0:01:30]} 35. g3 {[%clk 0:01:12]}  Rb7 {[%clk 0:01:30]} 36. Qd2 {[%clk 0:01:08]}  b4 {[%clk 0:01:29]} 37. Rc5 {[%clk 0:01:03]}  bxa3 {[%clk 0:01:26]} 38. bxa3 {[%clk 0:01:03]}  Rb3 {[%clk 0:01:25]} 1/2-1/2


[Site "https://www.chess.com"]

[Event "Titled Tuesday Blitz March 21 Late 2023"]
[White "Rottenwohrer Suarez, Juan"]
[Black "Bongo Akanga Ndjila, Barthelemy"]
[WhiteFideId "32068182"]
[BlackFideId "10609431"]
[WhiteElo "2174"]
[BlackElo "1768"]
[Result "0-1"]
[Round "02"]
[TimeControl "180+2"]
[Date "2023.03.21"]
[WhiteClock "0:00:01"]
[BlackClock "0:00:18"]

1. e4 {[%clk 0:03:00]}  e6 {[%clk 0:02:54]} 2. d4 {[%clk 0:02:54]}  d5 {[%clk 0:02:55]} 3. Nc3 {[%clk 0:02:54]}  Nf6 {[%clk 0:02:35]} 4. exd5 {[%clk 0:02:43]}  exd5 {[%clk 0:02:31]} 5. Bd3 {[%clk 0:02:40]}  Bd6 {[%clk 0:02:29]} 6. Bg5 {[%clk 0:02:35]}  c6 {[%clk 0:02:28]} 7. Nf3 {[%clk 0:02:33]}  O-O {[%clk 0:02:28]} 8. O-O {[%clk 0:02:33]}  Bg4 {[%clk 0:02:22]} 9. h3 {[%clk 0:02:32]}  Bh5 {[%clk 0:02:22]} 10. g4 {[%clk 0:01:49]}  Bg6 {[%clk 0:02:21]} 11. Bxg6 {[%clk 0:01:50]}  fxg6 {[%clk 0:02:16]} 12. Qd3 {[%clk 0:01:40]}  Qc7 {[%clk 0:02:14]} 13. Rae1 {[%clk 0:01:33]}  Nbd7 {[%clk 0:02:13]} 14. Kg2 {[%clk 0:01:25]}  h6 {[%clk 0:02:10]} 15. Bh4 {[%clk 0:01:16]}  g5 {[%clk 0:02:10]} 16. Bg3 {[%clk 0:01:16]}  Rae8 {[%clk 0:01:50]} 17. a4 {[%clk 0:00:50]}  a5 {[%clk 0:01:42]} 18. Bxd6 {[%clk 0:00:42]}  Qxd6 {[%clk 0:01:41]} 19. Re3 {[%clk 0:00:42]}  Rxe3 {[%clk 0:01:38]} 20. fxe3 {[%clk 0:00:42]}  Re8 {[%clk 0:01:36]} 21. Re1 {[%clk 0:00:37]}  Ne4 {[%clk 0:01:35]} 22. Ne2 {[%clk 0:00:33]}  Rf8 {[%clk 0:01:25]} 23. Rf1 {[%clk 0:00:28]}  Rf6 {[%clk 0:01:21]} 24. Nd2 {[%clk 0:00:28]}  Nxd2 {[%clk 0:01:14]} 25. Rxf6 {[%clk 0:00:27]}  Nxf6 {[%clk 0:01:12]} 26. Qxd2 {[%clk 0:00:28]}  Ne4 {[%clk 0:01:12]} 27. Qe1 {[%clk 0:00:27]}  Qf6 {[%clk 0:01:09]} 28. c3 {[%clk 0:00:24]}  g6 {[%clk 0:01:07]} 29. Ng3 {[%clk 0:00:24]}  Nd6 {[%clk 0:00:57]} 30. b3 {[%clk 0:00:18]}  Qe6 {[%clk 0:00:51]} 31. Qf2 {[%clk 0:00:17]}  Kg7 {[%clk 0:00:51]} 32. Qf3 {[%clk 0:00:17]}  b5 {[%clk 0:00:45]} 33. Ne2 {[%clk 0:00:08]}  bxa4 {[%clk 0:00:41]} 34. bxa4 {[%clk 0:00:09]}  Nc4 {[%clk 0:00:40]} 35. Kf2 {[%clk 0:00:09]}  Nd2 {[%clk 0:00:39]} 36. Qg2 {[%clk 0:00:05]}  Ne4+ {[%clk 0:00:38]} 37. Ke1 {[%clk 0:00:06]}  Qd6 {[%clk 0:00:37]} 38. Qf3 {[%clk 0:00:04]}  Qa3 {[%clk 0:00:36]} 39. Qg2 {[%clk 0:00:01]}  Nxc3 {[%clk 0:00:35]} 40. Nxc3 {[%clk 0:00:01]}  Qxc3+ {[%clk 0:00:35]} 41. Ke2 {[%clk 0:00:02]}  Qc2+ {[%clk 0:00:34]} 42. Kf3 {[%clk 0:00:03]}  Qxa4 {[%clk 0:00:33]} 43. Qg3 {[%clk 0:00:02]}  Qd1+ {[%clk 0:00:33]} 44. Kg2 {[%clk 0:00:01]}  Qe2+ {[%clk 0:00:33]} 45. Kh1 {[%clk 0:00:02]}  Qf1+ {[%clk 0:00:29]} 46. Kh2 {[%clk 0:00:03]}  Qf7 {[%clk 0:00:27]} 47. Qe5+ {[%clk 0:00:03]}  Kh7 {[%clk 0:00:26]} 48. Qb8 {[%clk 0:00:03]}  a4 {[%clk 0:00:26]} 49. Qa8 {[%clk 0:00:03]}  Qf2+ {[%clk 0:00:25]} 50. Kh1 {[%clk 0:00:03]}  Qxe3 {[%clk 0:00:20]} 51. Qb7+ {[%clk 0:00:01]}  Kg8 {[%clk 0:00:20]} 52. Qc7 {[%clk 0:00:01]}  Qxd4 {[%clk 0:00:18]} 53. Qd8+ {[%clk 0:00:01]}  Kf7 {[%clk 0:00:17]} 54. Qd7+ {[%clk 0:00:01]}  Kf6 {[%clk 0:00:18]} 55. Qd8+ {[%clk 0:00:01]}  Ke5 {[%clk 0:00:18]} 0-1


[Site "https://www.chess.com"]

[Event "Titled Tuesday Blitz March 21 Late 2023"]
[White "ilya2700"]
[Black "Forgacs, Attila Jr."]
[BlackFideId "773654"]
[WhiteElo "2127"]
[BlackElo "2168"]
[Result "0-1"]
[Round "02"]
[TimeControl "180+2"]
[Date "2023.03.21"]
[WhiteClock "0:00:07"]
[BlackClock "0:00:07"]

1. e4 {[%clk 0:03:00]}  a6 {[%clk 0:03:00]} 2. d4 {[%clk 0:02:59]}  b5 {[%clk 0:03:01]} 3. Bd3 {[%clk 0:03:00]}  Bb7 {[%clk 0:03:01]} 4. Nd2 {[%clk 0:02:54]}  Nf6 {[%clk 0:03:01]} 5. Qe2 {[%clk 0:02:52]}  e6 {[%clk 0:03:01]} 6. c3 {[%clk 0:02:51]}  c5 {[%clk 0:03:02]} 7. Ngf3 {[%clk 0:02:43]}  Be7 {[%clk 0:03:01]} 8. e5 {[%clk 0:02:36]}  Nd5 {[%clk 0:02:58]} 9. Ne4 {[%clk 0:02:37]}  cxd4 {[%clk 0:02:48]} 10. cxd4 {[%clk 0:02:37]}  Qb6 {[%clk 0:02:34]} 11. a3 {[%clk 0:02:29]}  Nc6 {[%clk 0:02:28]} 12. Be3 {[%clk 0:02:29]}  Rc8 {[%clk 0:02:21]} 13. O-O {[%clk 0:02:28]}  Na5 {[%clk 0:02:13]} 14. Rac1 {[%clk 0:02:23]}  O-O {[%clk 0:02:06]} 15. Nfg5 {[%clk 0:02:02]}  h6 {[%clk 0:02:01]} 16. Nh3 {[%clk 0:01:57]}  Nc4 {[%clk 0:01:48]} 17. Bb1 {[%clk 0:01:21]}  Ncxe3 {[%clk 0:01:35]} 18. fxe3 {[%clk 0:01:21]}  Rxc1 {[%clk 0:01:33]} 19. Rxc1 {[%clk 0:01:20]}  f5 {[%clk 0:01:19]} 20. exf6 {[%clk 0:01:17]}  Nxf6 {[%clk 0:01:19]} 21. Nxf6+ {[%clk 0:01:14]}  Rxf6 {[%clk 0:01:17]} 22. Nf4 {[%clk 0:01:12]}  Rxf4 {[%clk 0:01:11]} 23. exf4 {[%clk 0:01:11]}  Qxd4+ {[%clk 0:01:08]} 24. Qf2 {[%clk 0:01:11]}  Qd5 {[%clk 0:00:56]} 25. Qc2 {[%clk 0:01:07]}  Bc5+ {[%clk 0:00:39]} 26. Kh1 {[%clk 0:01:05]}  Be3 {[%clk 0:00:36]} 27. Rd1 {[%clk 0:01:04]}  Qc6 {[%clk 0:00:17]} 28. Qg6 {[%clk 0:00:30]}  Kf8 {[%clk 0:00:09]} 29. f5 {[%clk 0:00:27]}  e5 {[%clk 0:00:07]} 30. f6 {[%clk 0:00:19]}  Qxf6 {[%clk 0:00:05]} 31. Qxf6+ {[%clk 0:00:19]}  gxf6 {[%clk 0:00:05]} 32. Rxd7 {[%clk 0:00:20]}  Bc6 {[%clk 0:00:04]} 33. Rd6 {[%clk 0:00:20]}  Bb7 {[%clk 0:00:03]} 34. Rd7 {[%clk 0:00:21]}  Bc6 {[%clk 0:00:02]} 35. Rh7 {[%clk 0:00:19]}  Ke8 {[%clk 0:00:02]} 36. Rc7 {[%clk 0:00:19]}  Bd5 {[%clk 0:00:01]} 37. Bf5 {[%clk 0:00:12]}  Bd4 {[%clk 0:00:02]} 38. Rd7 {[%clk 0:00:08]}  Bc4 {[%clk 0:00:01]} 39. Rb7 {[%clk 0:00:08]}  Bxb2 {[%clk 0:00:01]} 40. Bg6+ {[%clk 0:00:05]}  Kd8 {[%clk 0:00:01]} 41. Ra7 {[%clk 0:00:05]}  Bxa3 {[%clk 0:00:02]} 42. Rxa6 {[%clk 0:00:06]}  Bc5 {[%clk 0:00:02]} 43. Rxf6 {[%clk 0:00:06]}  Bd4 {[%clk 0:00:03]} 44. Rd6+ {[%clk 0:00:06]}  Kc7 {[%clk 0:00:03]} 45. Rf6 {[%clk 0:00:07]}  b4 {[%clk 0:00:03]} 46. Bf7 {[%clk 0:00:07]}  Bxf7 {[%clk 0:00:03]} 47. Rxf7+ {[%clk 0:00:07]}  Kd6 {[%clk 0:00:04]} 48. Rh7 {[%clk 0:00:08]}  b3 {[%clk 0:00:04]} 49. Rxh6+ {[%clk 0:00:09]}  Kc5 {[%clk 0:00:05]} 50. Rh8 {[%clk 0:00:09]}  b2 {[%clk 0:00:04]} 51. Rb8 {[%clk 0:00:10]}  Kc4 {[%clk 0:00:04]} 52. h4 {[%clk 0:00:10]}  Bc3 {[%clk 0:00:05]} 53. Rxb2 {[%clk 0:00:08]}  Bxb2 {[%clk 0:00:05]} 54. h5 {[%clk 0:00:08]}  e4 {[%clk 0:00:06]} 55. Kg1 {[%clk 0:00:08]}  Kd3 {[%clk 0:00:06]} 56. Kf2 {[%clk 0:00:08]}  Kd2 {[%clk 0:00:06]} 57. h6 {[%clk 0:00:07]}  e3+ {[%clk 0:00:07]} 0-1


[Site "https://www.chess.com"]